Cogmind - Beta 16 @@@ ROGUE MODE // 2025.10.27 @ 22:41:27 Player: FUMI Result: Destroyed by Y-45 Defender with Heavy Assault Rifle Performance ------------- Evolutions (0) 0 Regions Visited (2) 400 Robots Destroyed (16) 80 Value Destroyed (458) 458 Prototype IDs (0) 0 Alien Tech Used (0) 0 Bonus (0) 0 TOTAL SCORE: 938 Bonus ------- None Cogmind --------- Core Integrity 0/250 Matter 300/300 Energy 100/100 System Corruption 0% Temperature Cool (0) Movement Core (150) Ox2 Location -10/Mines Parts ------- > --- POWER (1) -------- (None) > --- PROPULSION (2) --- (None) > --- UTILITY (2) ------ Small Storage Unit Targeting Computer > --- WEAPON (2) ------- Light Assault Rifle Light Assault Rifle > --- INVENTORY (8) ---- Aluminum Leg Sensor Array Experimental Sensor Array Heavy EM Pulse Gun Small Laser Particle Gun Light Assault Rifle Grenade Launcher Peak State ------------ > --- POWER ------------ Ion Engine > --- PROPULSION ------- Aluminum Leg Aluminum Leg > --- UTILITY ---------- Small Storage Unit Visual Processing Unit > --- WEAPON ----------- EM Pulse Gun Light Assault Rifle > --- INVENTORY -------- Light Ion Engine Light Treads Light Treads Light Assault Rifle [Rating: 8] Favorites ----------- Power Ion Engine Engine Ion Engine Propulsion Aluminum Leg Leg Aluminum Leg Utility Small Storage Unit Storage Small Storage Unit Processor Targeting Computer Weapon Light Assault Rifle Energy Gun EM Pulse Gun Ballistic Gun Light Assault Rifle Launcher Grenade Launcher Build | -11 -10 -10 ------- Run | Yrd Mat Min Slots Evolved . | . . . Power . | . . . Propulsion . | . . . Utility . | . . . Weapon . | . . . Parts Attached 14 | 6 7 1 Power 2 | 1 1 . Engine 2 | 1 1 . Core . | . . . Reactor . | . . . Propulsion 4 | 2 2 . Treads . | . . . Leg 4 | 2 2 . Wheel . | . . . Hover . | . . . Flight . | . . . Utility 3 | 1 2 . Device . | . . . Storage 1 | 1 . . Processor 2 | . 2 . Hackware . | . . . Protection . | . . . Artifact . | . . . Weapon 5 | 2 2 1 Energy Gun 1 | 1 . . Energy Cannon . | . . . Ballistic Gun 3 | 1 1 1 Ballistic Cannon . | . . . Launcher 1 | . 1 . Special Weapon . | . . . Impact Weapon . | . . . Slashing Weapon . | . . . Piercing Weapon . | . . . Special Melee Weapon . | . . . Unidentified Prototypes . | . . . Parts Lost 5 | . 1 4 Power 1 | . . 1 Propulsion 3 | . . 3 Utility . | . . . Weapon 1 | . 1 . Highest Loss Streak 3 | . 1 3 To Critical Strikes 1 | . . 1 Average Backups 6 | 1 6 7 Power 1 | . 1 . Propulsion 2 | . 2 1 Utility . | . . 1 Weapon 2 | . 2 4 Tool/Special . | . . . Unused Backups 11 | . 4 7 Power 1 | . . 1 Propulsion 3 | . 2 1 Utility 2 | . . 2 Weapon 5 | . 2 3 Tool/Special . | . . . Average Slot Usage (%) 98 | . 98 100 Engine 14 | . 14 14 Leg 27 | . 27 28 Storage 14 | . 14 14 Processor 13 | . 13 14 Energy Gun 1 | . 1 . Ballistic Gun 26 | . 25 28 Peak Build Rating 8 | 6 8 8 Average Rating 7 | 4 7 7 On Entrance 4 | . 6 8 Avg Prop Armor Cover (%) . | . . . Naked Turns . | . . . Heaviest Build 14 | 13 14 12 Greatest Support 20 | 20 20 20 Greatest Overweight (x) 1 | . . 1 Average Overweight (x) . | . . . Largest Inventory Capacity 8 | 8 8 8 Average Capacity 7 | 6 8 8 Most Carried 8 | 4 8 8 Average Carried 6 | 1 6 7 Final Capacity 8 | 8 8 8 Final Carried 8 | 4 8 8 Class Distribution -------------------- 100% | Mutant Dominant Class ---------------- Mutant | -10/Materials Mutant | -10/Mines Resources | -11 -10 -10 ----------- Run | Yrd Mat Min Matter Collected 508 | 260 170 78 Remotely . | . . . Salvage Created 582 | . 553 29 Parts 33 | . 29 4 Haulers Intercepted . | . . . Recyclers Shooed 2 | . 1 1 Parts Field Recycled . | . . . Retrieved Matter . | . . . Parts Self-Destructed . | . . . Prevented . | . . . Parts Restored . | . . . Kills | -11 -10 -10 ------- Run | Yrd Mat Min Combat Hostiles Destroyed 12 | . 10 2 Guns 12 | . 10 2 Classes Destroyed 5 | . 4 1 Worker 1 | . 1 . Recycler 1 | . 1 . Watcher 2 | . 2 . Swarmer 2 | . . 2 Grunt 10 | . 10 . Best Kill Streak 4 | . 4 1 Combat Bots Only 4 | . 4 1 Max Kills in Single Turn 1 | . 1 1 Gunslinging . | . . . Exploded . | . . . Melee . | . . . Uniques/NPCs Destroyed . | . . . Combat | -11 -10 -10 -------- Run | Yrd Mat Min Hostile Shots Fired 100 | . 56 44 Missed 19 | . 12 7 Hits 81 | . 44 37 Projectile 81 | . 44 37 Critical Strikes 6 | . 5 1 Damage Taken 1016 | . 589 427 Core 250 | . 146 104 Absorbed by Shields . | . . . Regen/Repaired (Parts) 106 | . 106 . Core Remaining (%) 100 | 100 . . Volleys Fired 71 | . 59 12 Largest 2 | . 2 2 Hottest 60 | . 60 40 Shots Fired 140 | . 116 24 Gun 138 | . 114 24 Cannon . | . . . Launcher 2 | . 2 . Special . | . . . Kinetic 127 | . 103 24 Thermal . | . . . Explosive 2 | . 2 . Electromagnetic 11 | . 11 . Robot Hit Streak 9 | . 9 6 Robot Miss Streak 4 | . 4 2 Penetration Max . | . . . Secondary Targets . | . . . Shots Hit Robots 90 | . 74 16 Core Hits 40 | . 35 5 Critical Kills 1 | . 1 . Critical Parts Destroyed . | . . . Critical Strikes 1 | . 1 . Destroy 1 | . 1 . Melee Attacks . | . . . Impact . | . . . Slashing . | . . . Piercing . | . . . Sneak Attacks . | . . . Combat Hostiles . | . . . Follow-up Attacks . | . . . Damage Inflicted 851 | . 708 143 Guns 761 | . 635 126 Cannons . | . . . Explosions 54 | . 54 . Melee . | . . . Ramming 36 | . 19 17 Kinetic 637 | . 511 126 Thermal 36 | . 36 . Explosive 18 | . 18 . Electromagnetic 124 | . 124 . Impact . | . . . Slashing . | . . . Piercing . | . . . Highest Corruption . | . . . Average Corruption . | . . . Corruption Purged . | . . . Corruption Blocked . | . . . Overload Shots . | . . . Overflow Damage . | . . . Projectiles . | . . . Explosions . | . . . Melee . | . . . Knockbacks . | . . . Impact . | . . . Kinetic . | . . . Secondary . | . . . Self-Inflicted Damage . | . . . Shots . | . . . Rammed . | . . . Targets Rammed 7 | . 3 4 Kicked 7 | . 3 4 Crushed . | . . . Highest Temperature 210 | . 210 8 Average Temperature 63 | . 66 4 Received Heat Transfer 489 | . 426 63 Effects 4 | . 4 . Energy Bleed 1 | . 1 . Interference 3 | . 3 . Siege Activations . | . . . Martial Activations . | . . . Shielding Activations . | . . . Robots Disrupted . | . . . Combat Hostiles . | . . . Robots Corrupted . | . . . Combat Hostiles . | . . . Parts Fried . | . . . Impact Corruptions . | . . . Robots Melted . | . . . Combat Hostiles . | . . . Parts Melted . | . . . Heat Transferred 50 | . 50 . Parts Sabotaged . | . . . Parts Stolen . | . . . Parts Stripped . | . . . Power Chain Reactions 1 | . 1 . Alert | -11 -10 -10 ------- Run | Yrd Mat Min Maximum Alert Level . | . . . Low Security (%) 100 | 100 100 100 Level 1 . | . . . Level 2 . | . . . Level 3 . | . . . Level 4 . | . . . Level 5 . | . . . High Security . | . . . Max Security . | . . . Peak Influence 121 | . 121 50 Initial 6 | . . 6 Average 31 | . 41 12 Influence Increases 452 | . 357 95 Destroy 0b10 Robot/C 240 | . 200 40 Destroy 0b10 Robot/NC 20 | . 20 . Destroy Leader 54 | . 44 10 Disable Machine 30 | . 30 . Destroy Structure 18 | . 18 . Lose Combat Pursuer 90 | . 45 45 Influence Decreases 452 | . 340 112 Entered New Map 11 | . . 11 Time Decay 431 | . 330 101 Lost Part 10 | . 10 . Squads Dispatched 2 | . 2 . Investigation 1 | . 1 . Extermination . | . . . Reinforcement 1 | . 1 . Assault . | . . . Garrison . | . . . Intercept . | . . . Searches Triggered . | . . . Construction Impeded . | . . . Haulers Reinforced . | . . . Active Scanning Responses . | . . . Cargo Convoy Interrupts . | . . . Stealth | -11 -10 -10 --------- Run | Yrd Mat Min Distress Signals 3 | . 3 . Communications Jammed . | . . . Distress Signals . | . . . Times Spotted 27 | . 20 7 Peak Tracking Total 5 | . 5 3 Tactical Retreats 5 | . 3 2 Traps | -11 -10 -10 ------- Run | Yrd Mat Min Traps Triggered . | . . . Indirectly . | . . . Trap Hack Attempts . | . . . Triggered . | . . . Disarmed . | . . . Reprogrammed . | . . . Reused . | . . . Traps Extracted . | . . . Installed . | . . . Triggered . | . . . Machines | -11 -10 -10 ---------- Run | Yrd Mat Min Machines Disabled 2 | . 2 . Max in Single Turn 1 | . 1 . Machines Repaired . | . . . Machines Dismantled . | . . . Machines Sabotaged . | . . . Overloaded Fab Kills . | . . . Hacking | -11 -10 -10 --------- Run | Yrd Mat Min Machines Accessed 4 | . 4 . Terminals 3 | . 3 . Fabricators . | . . . Repair Stations 1 | . 1 . Recycling Units . | . . . Scanalyzers . | . . . Garrison Access . | . . . Total Hacks 13 | . 13 . Successful 6 | . 6 . Failed 7 | . 7 . Catastrophic 2 | . 2 . Database Lockouts . | . . . Manual 7 | . 7 . Terminals 8 | . 8 . Fabricators . | . . . Repair Stations 5 | . 5 . Recycling Units . | . . . Scanalyzers . | . . . Garrison Access . | . . . Terminal Hacks 2 | . 2 . Record 1 | . 1 . Branch Access Points 1 | . 1 . Fabricator Hacks . | . . . Repair Station Hacks 4 | . 4 . Scan Component 2 | . 2 . Repair 2 | . 2 . Recycling Unit Hacks . | . . . Scanalyzer . | . . . Garrison Access Hacks . | . . . Unauthorized Hacks . | . . . Terminals . | . . . Fabricators . | . . . Repair Stations . | . . . Recycling Units . | . . . Scanalyzers . | . . . Garrison Access . | . . . Data Cores Recovered . | . . . Used . | . . . Hacking Detections 4 | . 4 . Full Trace Events 1 | . 1 . Feedback Events . | . . . Feedback Blocked . | . . . Robot Schematics Acquired . | . . . Robots Built . | . . . Authchips . | . . . Time . | . . . Total Robot Build Rating . | . . . Part Schematics Acquired . | . . . Parts Built . | . . . Authchips . | . . . Time . | . . . Total Part Build Rating . | . . . Part Studies Acquired . | . . . Parts Repaired 2 | . 2 . Time 52 | . 52 . Parts Recycled . | . . . Recycled Matter . | . . . Retrieved Matter . | . . . Retrieved Components . | . . . Parts Scanalyzed . | . . . Part Schematics Acquired . | . . . Parts Damaged . | . . . Bothacking | -11 -10 -10 ------------ Run | Yrd Mat Min Used RIF Installer . | . . . Robots Hacked . | . . . Non-combat . | . . . Combat . | . . . Robot Hacks Applied . | . . . Relay Couplers Released . | . . . Fabnet Peak Effective % . | . . . Robots Rewired . | . . . Allies Hacked . | . . . Hacks Repelled . | . . . Allies | -11 -10 -10 -------- Run | Yrd Mat Min Total Allies . | . . . Largest Group . | . . . Highest-Rated Group . | . . . Highest-Rated Ally . | . . . Total Orders . | . . . Ally Attacks . | . . . Total Damage . | . . . Kills . | . . . Allies Corrupted . | . . . Allies Melted . | . . . Intel | -11 -10 -10 ------- Run | Yrd Mat Min Active Infowar (turns) 318 | . 318 . Optics 318 | . 318 . Robot Analysis Total . | . . . Derelict Logs Recovered 1 | . . 1 Drone Launches . | . . . Drone Recoveries . | . . . Exploration | -11 -10 -10 ------------- Run | Yrd Mat Min Turns Passed 1346 | 66 889 391 Spaces Moved 836 | 48 501 287 Core 5 | 5 . . Treads . | . . . Legs 831 | 43 501 287 Wheels . | . . . Hover . | . . . Flight . | . . . Fastest Speed 50 | 50 120 120 Average Speed 119 | 112 120 120 Slowest Speed 190 | 120 120 190 Overloaded Moves . | . . . Propulsion Burnouts . | . . . Robots Hopped . | . . . Potential Cave-ins . | . . . Cave-ins Triggered . | . . . Exploration Rate (%) 49 | 3 68 76 Regions Visited 2 Branch Regions 1 Pre-discovered Areas . | . . . Known Exits Taken 1 | . 1 . Unknown Exits Taken 1 | 1 . . Scrap Searched 1 | . . 1 Spaces Dug . | . . . Terrain Destroyed 16 | . 16 . Melee . | . . . Projectile . | . . . AOE 16 | . 16 . Terrain Rammed . | . . . Walls Destroyed . | . . . Machines Disabled . | . . . Actions | -11 -10 -10 --------- Run | Yrd Mat Min Total 1063 | 57 694 312 Wait 109 | . 104 5 Move 834 | 47 500 287 Hop . | . . . Pick Up 14 | 4 9 1 Fast Attach 9 | 6 3 . Attach 3 | . 2 1 Detach 1 | . 1 . Swap 8 | . 7 1 Drop 7 | . 6 1 Fire 71 | . 59 12 Melee . | . . . Ram . | . . . Kick 7 | . 3 4 Crush . | . . . Escape Stasis . | . . . Rewire . | . . . Trap . | . . . Miscellaneous . | . . . Route ------- -11/Scrapyard -10/Materials (discovered 4 exits: [*Mat] / *Min x2 / [*Sub]) -10/Mines (discovered 2 exits: [*Mat] / [*Sub]) History --------- Turn | Location | Event 3 | -11/Scrapyard | Discovered new exit (range 16) 67 | -11/Scrapyard | Entered Materials 269 | -10/Materials | Repaired Aluminum Leg 297 | -10/Materials | Repaired Lgt. Assault Rifle 318 | -10/Materials | Build established: Mutant 475 | -10/Materials | Identified exit to Mines 553 | -10/Materials | Core integrity fell below 50% 606 | -10/Materials | Discovered new exit (range 16) 934 | -10/Materials | Discovered new exit (range 8) 956 | -10/Materials | Entered Mines 983 | -10/Mines | Found a damaged Exp. Sensor Array with a note attached 986 | -10/Mines | Found Prototype Device 1031 | -10/Mines | Learned Materials trap positions 1103 | -10/Mines | Discovered new exit (range 12) 1192 | -10/Mines | Discovered new exit (range 15) 1328 | -10/Mines | Core integrity fell below 20% 1347 | -10/Mines | Destroyed by Y-45 Defender with Heavy Assault Rifle Last Messages --------------- 01040_ Kicked K-01 Serf out of the way. 01046_ Kicked R-06 Scavenger out of the way. 01052_ Critical hit (Destroy). 01052_ Aluminum Leg destroyed. 01055_ Acquired 1 matter. 01064_ S-10 Pest destroyed. 01067_ Acquired 12 matter. 01077_ Kicked U-05 Engineer. 01103_ EXIT=FOUND 01105_ R-06 Scavenger collects Lgt. Ion Engine. 01157_ S-10 Pest destroyed. 01167_ R-06 Scavenger collects Lgt. Assault Rifle. 01172_ Kicked R-06 Scavenger out of the way. 01173_ Acquired 10 matter. 01183_ K-01 Serf collects debris. 01192_ EXIT=FOUND 01194_ K-01 Serf collects debris. 01340_ Aluminum Leg destroyed. 01340_ Ion Engine destroyed. 01346_ Aluminum Leg destroyed. Map ----- +----------------------------------------------------+ | ?????????????????? ????# #? | | ?????????????????? ### ## | | ??????????????????# = !! | | ??????????????????# ### /### | | ??????????????????????????????## ??# | | ???????????????????????????????# ### | | ???????????????????????????????# | | ???????????????????????????????##### | | ???????????????????????????????????# | | ???????????????????????????????##### | | ??????????????????????????????## | | ??????????????????????????????# | | ???????????#####?????????????## | | ??????????## ##????????????# | | ??????????# ##?????? ## | | ??????????# ####??? #?## | | ??????###?# ##?? #####???# | | ?????##" ## #?? ?????????# | | ?????#"" # ##??#??????????# | | ?????#[! / ##????????????# | | ?????#!] / #####????????# | | ?????#"" # #????????## | | ?????##"??# #?????????????? | | ??????????###YY #?????????????? | | ????###?????# #?????????????? | | ???## #?????#@ #### #???????????# | | ???# ##????# #???? #??????????# | | ???# ###### #?????? #?????????# | | ???# #??????? #?????????# | | ??## #?????????????????????# | | ??# #### #####?????????????????????? | | ??# ##?# #?????????????????????????? | | ??## ### #?????????????????????????? | | ???## ## #?????????????????????????? | | ????# ##????????????????????????? | | ????# #????????????????????????? | | ????## #????????????????????????? | | ?????# ##????#####???????????????? | | ?????## #????## ##??????????????? | | ??????# #????# ##?????????????? | | ??????## #????# ####??????????? | | ??????## #???## ##?????????? | | ????### #??## ## ##????????? | | ????# #### #??# ######???? | | ????# ## #### #???# | | ????# ## #??## | | ????## ## #### #### | | ?????# #### #?# | | ????# ##??# ## #?# | | ????# ##???## #### ##?######## | +----------------------------------------------------+ Best States ------------- Heat Dissipation 25 Energy Generation 10 Energy Capacity 250 Matter Stores 300 Matter Capacity 300 Sight Range 18 Terrain Scan Density 10 Evasion (%) 55 Targeting Accuracy 5 Item Schematics ----------------- None Robot Schematics ------------------ None Fabricated ------------ Nothing Repaired ---------- Aluminum Leg | 28% | -10/Materials Lgt. Assault Rifle | 47% | -10/Materials Studied --------- None Alien Tech Used ----------------- None Achievements -------------- None Challenges ------------ None Game ------ Seed WeldingTractorActivator Manual? 0 Play Time 00:15:05 Cumulative 37.7 hours Start 2025.10.27 @ 22:28:31 End 2025.10.27 @ 22:41:27 Sessions 1 Manual Loads 0 Difficulty Rogue Special Mode None Game No. 42 Rogue 26 Adventurer 0 Explorer 16 Win Type - Total 0 Types 0/0/0/0/0/0/0/0/0/0 Lore% 6 Gallery% 22 Achievement% 18 Wizard Run 0 Options --------- Layout 1 ASCII 0 Keyboard 0 Movement Mouse Keybinds 0 Fullscreen 1 Font 20/Terminus Map View 64x48 Zoom Use 0% Tactical HUD 1 Map Filters NONE Filters NONE Steam 1 RUN: fa3ce32e-f39e-43fb-81cf-564228a38256